bitfinex-derivatives/quotes_ETHF0:USTF0_20260112
["timestamp","ask_amount","ask_price","bid_price","bid_amount"]
[1768258220914,0.00261972,3103.1,3102.2,0.99854282]
[1768258221114,0.92339262,3103.0,3102.2,0.99854282]
[1768258221318,0.00261972,3103.1,3102.2,0.99854282]
[1768258221518,0.92339251,3103.0,3102.2,0.99854282]
[1768258221718,0.00261972,3103.1,3102.2,0.99854282]
[1768258221917,0.92339251,3103.0,3102.2,0.99854282]
[1768258222119,0.00261972,3103.1,3102.2,0.99854282]
[1768258222319,0.92339269,3103.0,3102.2,0.99854282]
[1768258222518,0.00261972,3103.1,3102.2,0.99854282]
[1768258222719,0.92339244,3103.0,3102.2,0.99854282]
[1768258222913,0.00261972,3103.1,3102.2,0.99854282]
[1768258223115,0.92339244,3103.0,3102.2,0.99854282]
[1768258223318,0.00261972,3103.1,3102.2,0.99854282]
[1768258223516,0.92339237,3103.0,3102.2,0.99854282]
[1768258223815,0.00261972,3103.1,3102.2,0.99854282]
[1768258224016,0.92339237,3103.0,3102.2,0.99854282]
[1768258224217,0.00261972,3103.1,3102.2,0.99854282]
[1768258224417,0.92339231,3103.0,3102.2,0.99854282]
[1768258224618,0.00261972,3103.1,3102.2,0.99854282]
[1768258224920,0.92339231,3103.0,3102.2,0.99854282]
[1768258225117,0.00261972,3103.1,3102.2,0.99854282]
[1768258225417,0.92339231,3103.0,3102.2,0.99854282]
[1768258225620,0.00261972,3103.1,3102.2,0.99854282]
[1768258225920,0.92339252,3103.0,3102.2,0.99854282]
[1768258226221,0.00261972,3103.1,3102.2,0.99854282]
[1768258226423,0.92339223,3103.0,3102.2,0.99854282]
[1768258226614,0.00261972,3103.1,3102.2,0.99854282]
[1768258226908,0.92339223,3103.0,3102.2,0.99854282]
[1768258227108,0.00261972,3103.1,3102.2,0.99854282]
[1768258227315,0.92339223,3103.0,3102.2,0.99854282]
[1768258227521,0.00261972,3103.1,3102.2,0.99854282]
[1768258227715,0.92339203,3103.0,3102.2,0.99854282]
[1768258227914,0.00261972,3103.1,3102.2,0.99854282]
[1768258228118,0.92339205,3103.0,3102.2,0.99854282]
[1768258228320,0.00261972,3103.1,3102.2,0.99854282]
[1768258228521,0.92339191,3103.0,3102.2,0.99854282]
[1768258228724,0.00261972,3103.1,3102.2,0.99854282]
[1768258228921,0.92339191,3103.0,3102.2,0.99854282]
[1768258229121,0.00261972,3103.1,3102.2,0.99854282]
[1768258229321,0.92339191,3103.0,3102.2,0.99854282]
[1768258229521,0.00261972,3103.1,3102.2,0.99854282]
[1768258229822,0.92339192,3103.0,3102.2,0.99854282]
[1768258230021,0.00261972,3103.1,3102.2,0.99854282]
[1768258230222,0.92339192,3103.0,3102.2,0.99854282]
[1768258230424,0.00261972,3103.1,3102.2,0.99854282]
[1768258230620,0.9233917,3103.0,3102.2,0.99854282]
[1768258230819,0.00261972,3103.1,3102.2,0.99854282]
[1768258231027,0.92339169,3103.0,3102.2,0.99854282]
[1768258231226,0.00261972,3103.1,3102.2,0.99854282]
[1768258232121,0.00261972,3103.1,3102.4,0.99854282]
[1768258232628,0.00261972,3103.1,3102.2,0.99854282]
[1768258234234,0.00261972,3103.1,3102.0,0.00483737]
[1768258234423,0.00261972,3103.1,3102.2,0.99854282]
[1768258234933,0.00261972,3103.1,3102.0,0.00483737]
[1768258235126,0.00261972,3103.1,3102.0,1.00338019]
[1768258240637,0.92290249,3103.0,3102.0,1.00338019]
[1768258240836,0.00261972,3103.1,3102.0,1.00338019]
[1768258241137,0.92290435,3103.0,3102.0,1.00338019]
[1768258241338,0.00261972,3103.1,3102.0,1.00338019]
[1768258241532,0.92288649,3103.0,3102.0,1.00338019]
[1768258241731,0.00261972,3103.1,3102.0,1.00338019]
[1768258241929,0.92288649,3103.0,3102.0,1.00338019]
[1768258242130,0.00261972,3103.1,3102.0,1.00338019]
[1768258242325,0.92287535,3103.0,3102.0,1.00338019]
[1768258242538,0.00261972,3103.1,3102.0,1.00338019]
[1768258242833,0.92287443,3103.0,3102.0,1.00338019]
[1768258243039,0.00261972,3103.1,3102.0,1.00338019]
[1768258243238,0.92287443,3103.0,3102.0,1.00338019]
[1768258243436,0.00261972,3103.1,3102.0,1.00338019]
[1768258243736,0.92286244,3103.0,3102.0,1.00338019]
[1768258243936,0.00261972,3103.1,3102.0,1.00338019]
[1768258244136,0.9228627,3103.0,3102.0,1.00338019]
[1768258244337,0.00261972,3103.1,3102.0,1.00338019]
[1768258244535,0.00261972,3103.1,3101.4,4.05605647]
[1768258244536,0.14122393,3102.5,3101.4,4.05605647]
[1768258244741,1.2673352,3103.0,3101.0,5.74936598]
[1768258244742,0.14122393,3102.3,3101.0,0.99854282]
[1768258244936,0.92301169,3102.2,3101.0,0.99854282]
[1768258245135,0.14122393,3102.3,3101.0,0.99854282]
[1768258249346,0.14122393,3102.3,3100.7,0.00266313]
[1768258270976,0.14026882,3101.0,3099.0,9.33370637]
[1768258271164,0.30168882,3100.8,3099.0,0.1347208]
[1768258271467,0.14026882,3100.7,3099.0,1.13399469]
[1768258271767,0.00483737,3100.2,3099.6,0.00483737]
[1768258271975,0.00807305,3100.2,3099.6,0.00888599]
[1768258273468,0.14028043,3100.1,3098.3,0.14182295]
[1768258274375,0.14028043,3100.0,3098.3,0.00306029]
[1768258282378,0.14028043,3099.9,3098.3,0.00306029]
[1768258287092,0.14028043,3099.9,3098.3,0.14488324]
[1768258288385,0.30175043,3099.9,3098.3,0.00306029]
[1768258288592,0.14028043,3099.6,3098.3,0.00306029]
[1768258293597,0.14028043,3100.1,3098.6,0.99927389]
[1768258294095,0.14028043,3100.1,3098.4,0.99927389]
[1768258295994,0.13926895,3100.0,3098.4,0.99927389]
[1768258298799,0.13926895,3100.0,3098.4,1.13728197]
[1768258298989,0.13926895,3100.0,3098.5,0.13800808]
[1768258299191,0.16146,3100.1,3098.5,0.13800808]
[1768258299391,0.92960224,3100.0,3098.5,0.13800808]
[1768258299592,0.92960224,3099.9,3098.5,0.13800808]
[1768258299792,0.30072895,3100.1,3098.5,0.13800808]
[1768258299992,0.92959886,3100.0,3098.5,0.13800808]
[1768258300193,1.06886781,3099.9,3098.5,0.13800808]
[1768258300496,0.92959886,3099.8,3098.3,1.00233418]
[1768258300701,0.92959886,3099.8,3098.4,0.13800808]
[1768258305201,1.06886781,3099.8,3098.4,0.13800808]
[1768258305411,0.92959886,3099.7,3098.4,0.13800808]
[1768258307000,0.13926895,3099.6,3098.3,1.00233418]
[1768258309811,0.93337372,3099.5,3098.3,1.00233418]
[1768258310000,0.13926895,3099.6,3098.3,1.00233418]
[1768258311397,0.13926895,3099.6,3098.7,1.00077402]
[1768258318615,0.93390834,3099.5,3098.7,1.00077402]
[1768258318806,0.13926895,3099.6,3098.7,1.00077402]
[1768258319007,0.93392506,3099.5,3098.7,1.00077402]
[1768258319206,0.13926895,3099.6,3098.7,1.00077402]
[1768258322617,0.13926895,3099.6,3099.0,1.00077402]
[1768258324020,0.13926895,3099.6,3098.7,1.00077402]
[1768258328711,0.16147,3099.9,3098.7,1.00077402]
[1768258328910,0.93232923,3099.8,3098.7,1.00077402]
[1768258329115,0.93232923,3099.7,3098.7,1.00077402]
[1768258329412,0.93232923,3099.6,3098.7,1.00077402]
[1768258329611,0.16147,3099.9,3098.7,1.00077402]
[1768258329813,0.93233428,3099.8,3098.7,1.00077402]
[1768258330008,0.93233428,3099.7,3098.7,1.00077402]
[1768258330213,0.93233428,3099.6,3098.3,0.1501404]
[1768258330420,0.13867749,3099.8,3098.8,1.00077402]
[1768258330621,0.93234005,3099.7,3098.8,1.00077402]
[1768258330918,0.93234005,3099.6,3098.8,1.00077402]
[1768258331119,0.13867749,3099.8,3098.8,1.00077402]
[1768258331320,0.93234265,3099.7,3098.8,1.00077402]
[1768258331520,0.93234265,3099.6,3098.8,1.00077402]
[1768258331721,0.13867749,3099.8,3098.8,1.00077402]
[1768258331916,0.93234736,3099.7,3098.8,1.00077402]
[1768258332115,0.93234736,3099.6,3098.8,1.00077402]
[1768258332312,0.13867749,3099.8,3098.8,1.00077402]
[1768258332611,0.93235565,3099.7,3098.8,1.00077402]
[1768258332815,0.93235565,3099.6,3098.8,1.00077402]
[1768258333017,0.13867749,3099.8,3098.8,1.00077402]
[1768258333211,0.93235571,3099.7,3098.8,1.00077402]
[1768258333412,0.93235571,3099.6,3098.8,1.00077402]
[1768258333613,0.16147,3099.9,3098.8,1.00077402]
[1768258333813,0.93236534,3099.8,3098.8,1.00077402]
[1768258334013,0.93236534,3099.7,3099.1,1.00077402]
[1768258334223,0.16147,3099.9,3099.1,1.00077402]
[1768258334419,0.932368,3099.8,3099.1,1.00077402]
[1768258334619,0.932368,3099.7,3099.1,1.00077402]
[1768258334823,0.16147,3099.9,3099.1,1.00077402]
[1768258335014,0.932368,3099.8,3099.1,1.00077402]
[1768258335211,0.932368,3099.7,3099.1,1.00077402]
[1768258335416,0.16147,3099.9,3099.1,1.00077402]
[1768258335723,0.9323613,3099.8,3099.1,1.00077402]
[1768258335921,0.9323613,3099.7,3099.1,1.00077402]
[1768258336121,0.16147,3099.9,3099.1,1.00077402]
[1768258336323,0.93234963,3099.8,3099.1,1.00077402]
[1768258336525,0.93234963,3099.7,3099.1,1.00077402]
[1768258336826,0.16147,3099.9,3099.1,1.00077402]
[1768258337125,0.93235313,3099.8,3099.1,1.00077402]
[1768258337314,0.93235313,3099.7,3099.1,1.00077402]
[1768258337517,0.16147,3099.9,3099.1,1.00077402]
[1768258337817,0.93234298,3099.8,3099.1,1.00077402]
[1768258338018,0.93234298,3099.7,3099.1,1.00077402]
[1768258338224,0.16147,3099.9,3099.1,1.00077402]
[1768258338525,0.9323353,3099.8,3099.1,1.00077402]
[1768258338722,0.9323353,3099.7,3099.1,1.00077402]
[1768258338929,0.16147,3099.9,3099.1,1.00077402]
[1768258339126,0.93233304,3099.8,3099.1,1.00077402]
[1768258339328,0.93233304,3099.7,3099.1,1.00077402]
[1768258339626,0.16147,3099.9,3099.1,1.00077402]
[1768258339826,0.93232529,3099.8,3099.1,1.00077402]
[1768258340028,0.93232529,3099.7,3099.1,1.00077402]
[1768258340328,0.16147,3099.9,3099.1,1.00077402]
[1768258340527,0.93231768,3099.8,3099.1,1.00077402]
[1768258340728,0.93231768,3099.7,3099.1,1.00077402]
[1768258340929,0.16147,3099.9,3099.1,1.00077402]
[1768258341129,0.9323175,3099.8,3099.1,1.00077402]
[1768258341429,0.9323175,3099.7,3099.1,1.00077402]
[1768258341630,0.16147,3099.9,3099.1,1.00077402]
[1768258341934,0.93231007,3099.8,3099.1,1.00077402]
[1768258342231,0.93231007,3099.7,3099.1,1.00077402]
[1768258342431,0.16147,3099.9,3099.1,1.00077402]
[1768258342620,0.9322956,3099.8,3099.1,1.00077402]
[1768258342824,0.9322956,3099.7,3099.1,1.00077402]
[1768258343024,0.16147,3099.9,3099.1,1.00077402]
[1768258343225,0.93229691,3099.8,3099.1,1.00077402]
[1768258343425,0.93229691,3099.7,3099.1,1.00077402]
[1768258343725,0.16147,3099.9,3099.1,1.00077402]
[1768258343927,0.93227253,3099.8,3099.1,1.00077402]
[1768258344230,0.16147,3099.9,3099.1,1.00077402]
[1768258344435,0.93224022,3099.8,3099.1,1.00077402]
[1768258344637,0.16147,3099.9,3099.1,1.00077402]
[1768258344832,0.93224025,3099.8,3099.1,1.00077402]
[1768258345131,0.16147,3099.9,3099.1,1.00077402]
[1768258345331,0.93221656,3099.8,3099.1,1.00077402]
[1768258345634,0.16147,3099.9,3099.1,1.00077402]
[1768258345835,0.93221393,3099.8,3099.1,1.00077402]
[1768258346030,0.16147,3099.9,3099.1,1.00077402]
[1768258346233,0.93221472,3099.8,3099.1,1.00077402]
[1768258346433,0.16147,3099.9,3099.1,1.00077402]
[1768258346635,0.93219439,3099.8,3099.1,1.00077402]
[1768258346830,0.16147,3099.9,3099.1,1.00077402]
[1768258347032,0.93219445,3099.8,3099.1,1.00077402]
[1768258347235,0.16147,3099.9,3099.1,1.00077402]
[1768258347433,0.93217806,3099.8,3099.1,1.00077402]
[1768258347635,0.16147,3099.9,3099.1,1.00077402]
[1768258347828,0.93217739,3099.8,3099.1,1.00077402]
[1768258348134,0.16147,3099.9,3099.1,1.00077402]
[1768258348437,0.9321654,3099.8,3099.1,1.00077402]
[1768258348647,0.16147,3099.9,3099.1,1.00077402]
[1768258348934,0.93216481,3099.8,3099.1,1.00077402]
[1768258349137,0.16147,3099.9,3099.1,1.00077402]
[1768258349339,0.93215535,3099.8,3099.1,1.00077402]
[1768258349636,0.16147,3099.9,3099.1,1.00077402]
[1768258349934,0.9321557,3099.8,3099.1,1.00077402]
[1768258350136,0.16147,3099.9,3099.1,1.00077402]
[1768258350336,0.93214801,3099.8,3099.1,1.00077402]
[1768258350528,0.16147,3099.9,3099.1,1.00077402]
[1768258350728,0.00807305,3100.2,3099.1,1.00077402]
[1768258350729,0.93214812,3099.8,3099.1,1.00077402]
[1768258350930,0.00807305,3100.2,3099.3,1.00077402]
[1768258351130,0.93223222,3100.1,3099.3,1.00077402]
[1768258351330,0.00807305,3100.2,3099.3,1.00077402]
[1768258351531,0.93194638,3100.1,3099.3,1.00077402]
[1768258351726,0.00807305,3100.2,3099.3,1.00077402]
[1768258352031,0.93197075,3100.1,3099.5,1.00077402]
[1768258352235,0.00807305,3100.2,3099.5,1.00077402]
[1768258357938,0.30358018,3101.1,3099.9,1.00077402]
[1768258358136,0.93068408,3101.0,3099.9,1.00077402]
[1768258358336,0.93068408,3100.9,3099.9,1.00077402]
[1768258358539,0.93068408,3100.8,3099.9,1.00077402]
[1768258358737,0.93068408,3100.7,3099.9,1.00077402]
[1768258358938,0.00399715,3100.7,3099.9,1.00077402]
[1768258373353,0.00399715,3100.7,3099.6,0.1342229]
[1768258378153,0.00483737,3100.5,3099.6,0.1342229]
[1768258379455,0.00399715,3100.7,3099.6,0.1342229]
[1768258379764,0.00399715,3100.7,3099.7,0.00483737]
[1768258398668,0.00399715,3100.7,3099.7,0.15157505]
[1768258403981,0.14194099,3101.2,3099.7,0.15157505]
[1768258404274,0.14022976,3101.8,3099.9,1.30820783]
[1768258404474,0.14022976,3101.6,3099.9,1.30820783]
[1768258404678,0.93033664,3101.5,3099.9,1.30820783]
[1768258405076,0.93400148,3101.5,3099.9,1.30820783]
[1768258405276,0.93033664,3101.4,3099.9,1.30820783]
[1768258405477,0.00366484,3101.5,3099.9,1.30820783]
[1768258405680,0.93003223,3101.4,3099.9,1.30820783]
[1768258405876,0.00366484,3101.5,3099.9,1.30820783]
[1768258406078,0.93003302,3101.4,3099.9,1.30820783]
[1768258406379,0.00366484,3101.5,3099.9,1.30820783]
[1768258407382,0.1438946,3101.5,3099.9,1.30820783]
[1768258408790,0.1438946,3101.5,3100.0,0.14673768]
[1768258409797,0.1438946,3101.5,3100.3,1.00000015]
[1768258418907,0.00366484,3101.5,3100.4,0.13375631]
[1768258420710,0.00366484,3101.5,3100.4,0.29519631]
[1768258433317,0.00366484,3101.5,3100.9,0.99933039]
[1768258433515,0.00366484,3101.5,3100.9,1.00231643]
[1768258447536,0.00366484,3101.5,3100.9,0.00298604]
[1768258453543,0.14591358,3101.5,3100.9,0.00298604]
[1768258454037,0.14591358,3101.5,3100.0,1.257]
[1768258454243,0.14224874,3101.0,3099.8,4.05605647]
[1768258454440,0.14224874,3101.0,3099.7,1.00416776]
[1768258454441,0.14224874,3101.0,3099.7,0.00483737]
[1768258454744,0.14224874,3101.0,3099.7,1.00416776]
[1768258454938,0.99933039,3101.1,3099.7,1.00416776]
[1768258454939,0.14224874,3100.8,3099.7,1.00416776]
[1768258455139,0.14224874,3100.8,3099.7,1.00784489]
[1768258456135,0.14224874,3100.8,3099.7,0.0085145]
[1768258456330,0.14224874,3100.6,3099.7,0.0085145]
[1768258457045,0.14224874,3100.4,3099.7,0.0085145]
[1768258457245,0.14224874,3100.4,3099.2,0.99933039]
[1768258458339,0.14224874,3100.4,3099.2,1.00276538]
[1768258462641,0.14224874,3100.4,3099.2,0.00343499]
[1768258471149,0.14224874,3098.8,3096.7,4.05605647]
[1768258471349,0.99933039,3097.6,3096.1,0.99933039]
[1768258471549,0.14224874,3097.5,3096.0,0.99933039]
[1768258471759,0.14224874,3097.5,3096.8,0.99933039]
[1768258472155,0.14604781,3097.5,3096.8,1.00192008]
[1768258472664,0.14604781,3097.5,3096.8,0.00258969]
[1768258473367,0.14224874,3097.4,3096.8,0.00120217]
[1768258487674,0.14224874,3097.4,3095.9,0.16168]
[1768258487878,0.14224874,3097.4,3096.3,0.99933039]
[1768258488876,0.14224874,3097.4,3096.3,1.00311402]
[1768258490771,0.00379907,3097.5,3096.5,0.99933039]
[1768258490974,0.14405372,3097.5,3096.5,0.99933039]
[1768258495283,0.14405372,3097.5,3096.3,0.00378363]
[1768258501290,0.14025465,3097.3,3096.3,0.00378363]
[1768258503588,0.00379907,3097.5,3096.3,0.00378363]
[1768258503891,0.94362769,3097.4,3096.3,0.00378363]
[1768258504188,0.94362769,3097.3,3096.3,0.00378363]
[1768258504488,0.00379907,3097.5,3096.3,0.00378363]
[1768258504689,0.9436432,3097.4,3096.3,0.00378363]
[1768258504889,0.9436432,3097.3,3096.3,0.00378363]
[1768258505088,0.00379907,3097.5,3096.3,0.00378363]
[1768258505290,0.94364392,3097.4,3096.3,0.00378363]
[1768258505592,0.94364392,3097.3,3096.3,0.00378363]
[1768258505891,0.00379907,3097.5,3096.3,0.00378363]
[1768258506091,0.94365959,3097.4,3096.3,0.00378363]
[1768258506303,0.94365959,3097.3,3096.3,0.00378363]
[1768258506489,0.00379907,3097.5,3096.3,0.00378363]
[1768258506691,0.94366125,3097.4,3096.3,0.00378363]
[1768258506989,0.94366125,3097.3,3096.3,0.00378363]
[1768258507290,0.00379907,3097.5,3096.3,0.00378363]
[1768258507481,0.94366023,3097.4,3096.3,0.00378363]
[1768258507684,0.00379907,3097.5,3096.3,0.00378363]
[1768258507989,0.94431921,3097.4,3096.3,0.00378363]
[1768258508190,0.00379907,3097.5,3096.3,0.00378363]
[1768258508487,0.94431863,3097.4,3096.3,0.00378363]
[1768258508689,0.00379907,3097.5,3096.3,0.00378363]
[1768258508889,0.9443186,3097.4,3096.3,0.00378363]
[1768258509085,0.00379907,3097.5,3096.3,0.00378363]
[1768258509293,0.94421224,3097.4,3096.3,0.00378363]
[1768258509486,0.00379907,3097.5,3096.5,1.13518866]
[1768258509689,0.00379907,3097.5,3096.6,0.13305143]
[1768258510582,0.16156,3098.2,3096.6,0.13305143]
[1768258510782,0.94370328,3098.1,3096.6,0.13305143]
[1768258511086,0.94370328,3098.0,3096.6,0.13305143]
[1768258511388,0.94370328,3097.9,3096.6,0.13305143]
[1768258511686,0.94370328,3097.8,3096.6,0.13305143]
[1768258511888,0.0033527,3097.9,3096.6,0.13305143]
[1768258518792,1.28,3099.1,3096.6,0.13305143]
[1768258518793,0.14641229,3099.4,3097.8,1.16371723]
[1768258518997,0.14641229,3099.4,3097.6,1.00213723]
[1768258519394,0.14641229,3099.4,3097.7,0.619]
[1768258519694,0.14641229,3099.3,3097.6,2.26013723]
[1768258519898,0.14904515,3099.3,3097.6,2.26013723]
[1768258522195,0.14904515,3099.3,3097.6,1.00213723]
[1768258522401,0.14904515,3099.3,3097.6,2.26013723]
[1768258527196,0.14904515,3099.3,3097.7,0.02370332]
[1768258527505,0.14904515,3099.3,3097.8,4.489]
[1768258528503,0.14904515,3099.3,3097.7,0.02370332]
[1768258528705,0.14904515,3099.3,3097.8,1.258]
[1768258534110,0.00483737,3098.9,3097.8,1.258]
[1768258534610,0.00483737,3098.9,3097.9,1.257]
[1768258534910,0.00483737,3098.9,3097.5,1.16372723]
[1768258535110,0.00483737,3098.9,3098.0,1.257]
[1768258538623,0.14904515,3099.3,3098.0,1.257]
[1768258538624,0.00263286,3099.3,3098.0,1.41857]
[1768258538823,0.00263286,3099.3,3098.1,0.00483737]
[1768258551135,0.13932288,3099.3,3098.1,0.00483737]
[1768258555342,0.13932288,3099.3,3098.4,1.00085297]
[1768258560543,0.13932288,3099.3,3098.5,1.257]
[1768258560742,0.13932288,3099.3,3098.5,1.26016539]
[1768258577463,0.13932288,3099.3,3098.5,0.00316539]
[1768258577661,0.13932288,3099.3,3098.5,1.26316539]
[1768258586976,0.13932288,3099.3,3098.5,0.00316539]
[1768258587167,0.13932288,3099.3,3098.6,1.261]
[1768258590874,0.13932288,3099.3,3098.5,0.00316539]
[1768258591071,0.13932288,3099.3,3098.5,1.26416539]
[1768258607395,0.00263286,3099.3,3098.5,1.26416539]
[1768258612699,0.00263286,3099.3,3098.5,0.00316539]
[1768258612905,0.00263286,3099.3,3098.6,1.262]
[1768258627514,0.00263286,3099.3,3098.5,0.00316539]
[1768258628112,0.13698524,3099.3,3098.5,0.00316539]
[1768258679365,1.13815267,3099.3,3098.5,0.00316539]
[1768258681164,0.1425832,3099.2,3098.5,0.00316539]
[1768258706680,0.00263286,3099.3,3098.5,0.00316539]
[1768258706977,0.14169454,3099.3,3098.5,0.00316539]
[1768258712684,0.13906168,3100.4,3099.0,0.16151]
[1768258712876,0.13906168,3100.4,3099.5,1.00116743]
[1768258713779,0.14285204,3100.4,3099.5,1.00116743]
[1768258716480,0.14285204,3100.4,3099.2,1.00116743]
[1768258717681,0.14285204,3100.4,3099.1,0.16151]
[1768258718185,0.14285204,3100.4,3099.2,1.262]
[1768258718382,0.14285204,3100.4,3099.3,1.262]
[1768258721082,0.14476053,3099.3,3098.1,0.00483737]
[1768258721284,0.14476053,3098.2,3096.7,1.00116743]
[1768258721484,0.14476053,3097.9,3096.4,1.00116743]
[1768258721689,0.14476053,3097.9,3096.5,1.262]
[1768258722184,0.1482424,3097.9,3096.5,1.26446803]
[1768258722391,0.1482424,3097.9,3096.6,1.262]
[1768258723790,0.1482424,3097.9,3096.7,1.262]
[1768258726685,0.1482424,3097.9,3096.5,1.00363546]
[1768258726993,0.1482424,3097.9,3096.7,1.262]
[1768258732085,0.1482424,3097.9,3096.7,2.26316743]
[1768258735885,0.1482424,3097.9,3096.7,1.00116743]
[1768258736088,0.1482424,3097.9,3096.8,1.262]
[1768258738098,0.1482424,3097.9,3096.9,1.00116743]
[1768258740893,0.00348187,3097.9,3096.9,1.00116743]
[1768258741286,0.00348187,3097.9,3096.8,1.262]
[1768258746105,0.14361257,3098.7,3096.9,0.01310998]
[1768258746403,0.14361257,3099.4,3097.1,0.01310998]
[1768258747004,0.14361257,3099.4,3097.9,0.00483737]
[1768258747189,0.14608802,3099.4,3097.9,0.00483737]
[1768258747594,0.16152,3098.9,3097.9,0.00483737]
[1768258748904,0.14361257,3099.1,3097.9,0.00483737]
[1768258760001,1.0017512,3098.1,3095.9,0.13558474]
[1768258760303,0.16161,3097.3,3095.9,0.13558474]
[1768258761205,0.16161,3097.3,3095.9,0.13888026]
[1768258762714,1.0017512,3097.5,3095.9,0.13888026]
[1768258764005,1.0017512,3097.5,3095.9,0.00329552]
[1768258764006,7.0017512,3097.5,3095.9,0.00329552]
[1768258764413,1.0017512,3097.1,3095.9,0.00329552]
[1768258764606,1.00475179,3097.1,3095.9,0.00329552]
[1768258766402,0.00300059,3097.1,3095.9,0.00329552]
[1768258772020,0.00300059,3097.1,3095.9,0.13888026]
[1768258773521,1.0017512,3097.0,3095.9,0.00329552]
[1768258773724,1.0017512,3097.0,3095.4,0.13558474]
[1768258774625,0.16164,3096.7,3095.6,1.26006583]
[1768258776519,0.16164,3096.6,3095.6,1.26006583]
[1768258781726,0.16164,3096.6,3095.6,1.39367914]
[1768258782024,0.16164,3096.6,3095.7,0.13361331]
[1768258787129,0.00300059,3097.1,3095.7,0.13361331]
[1768258788326,0.16164,3096.6,3095.7,0.13361331]
[1768258788825,0.00300059,3097.1,3095.7,0.13361331]
[1768258792731,0.00300059,3097.1,3095.7,4.62861331]
[1768258793029,0.00300059,3097.1,3095.8,0.13361331]
[1768258799433,0.00300059,3097.1,3095.9,4.62761331]
[1768258799629,0.00300059,3097.1,3095.9,1.39561331]
[1768258800434,0.00300059,3097.1,3096.0,1.262]
[1768258800832,0.00300059,3097.1,3096.1,0.13361331]
[1768258801539,0.16161,3097.2,3096.3,0.13361331]
[1768258801741,0.16161,3097.2,3096.4,0.13361331]
[1768258802032,0.16158,3097.8,3096.5,0.13361331]
[1768258802236,0.92233962,3097.7,3096.5,0.13361331]
[1768258802438,0.16158,3097.8,3096.7,0.13361331]
[1768258802739,0.16432016,3097.8,3096.7,0.13361331]
[1768258802935,0.16432016,3097.8,3096.9,0.13361331]
[1768258803327,0.16270416,3097.8,3097.1,1.00231166]
[1768258803834,1.16386166,3098.3,3097.1,1.262]
[1768258804033,0.16156,3098.2,3097.0,1.262]
[1768258804627,0.16406652,3098.2,3097.1,1.00231166]
[1768258804836,0.00250652,3098.2,3097.4,1.00231166]
[1768258805041,0.30654602,3098.8,3097.4,1.00231166]
[1768258805242,1.14732768,3098.7,3097.1,0.13827654]
[1768258805541,0.14501602,3098.6,3097.2,2.26431166]
[1768258806043,0.14794572,3098.6,3097.2,2.26431166]
[1768258807041,0.0029297,3098.6,3097.2,2.40242508]
[1768258807936,1.00231166,3098.5,3097.2,1.00231166]
[1768258808136,1.14732768,3098.5,3097.2,2.26431166]
[1768258808642,1.14732768,3098.5,3097.2,1.00231166]
[1768258808942,1.14732768,3098.5,3097.2,2.26431166]
[1768258809638,0.14501602,3098.5,3097.2,2.26431166]
[1768258809843,0.0029297,3098.6,3097.2,2.26431166]
[1768258810039,0.0029297,3098.6,3097.2,2.40217506]
[1768258810244,0.0029297,3098.6,3097.4,1.00231166]
[1768258812451,0.0029297,3098.6,3097.6,1.00231166]
[1768258813050,1.00231166,3099.0,3097.6,1.14032344]
[1768258813357,1.16381166,3099.3,3097.8,1.00231166]
[1768258813956,1.16638508,3099.3,3097.8,1.00461175]
[1768258814859,1.16638508,3099.3,3097.8,1.13965564]
[1768258816258,1.16638508,3099.3,3098.0,1.00231166]
[1768258816560,0.16407342,3099.3,3098.0,1.00231166]
[1768258816755,0.00257342,3099.3,3098.2,1.00231166]
[1768258818963,0.00257342,3099.3,3098.4,1.00231166]
[1768258822962,0.13305496,3099.8,3098.6,1.00231166]
[1768258823962,0.13588458,3099.8,3098.6,1.00231166]
[1768258824465,0.00282962,3099.8,3098.6,1.00231166]
[1768258834373,0.00282962,3099.8,3098.9,1.00231166]
[1768258835561,1.16375166,3100.4,3098.9,1.132828]
[1768258835767,0.92482883,3100.3,3098.9,1.132828]
[1768258835969,0.92482883,3100.2,3098.9,1.132828]
[1768258836273,0.92482883,3100.1,3098.9,1.132828]
[1768258836475,1.16375166,3100.4,3098.9,1.132828]
[1768258836668,0.92489782,3100.3,3099.0,0.12757333]
[1768258836874,1.16755325,3100.4,3099.0,0.12757333]
[1768258838376,0.92406005,3100.3,3099.0,0.12757333]
[1768258838578,1.16755325,3100.4,3099.0,0.12757333]
[1768258838877,0.9240861,3100.3,3099.2,1.00231166]
[1768258839075,1.16755325,3100.4,3099.2,1.00231166]
[1768258839276,0.92408805,3100.3,3099.2,1.00231166]
[1768258839477,1.16755325,3100.4,3099.2,1.00231166]
[1768258839676,0.92429602,3100.3,3099.2,1.00231166]
[1768258839878,0.30423128,3100.4,3099.2,1.00231166]
[1768258840077,0.92429612,3100.3,3099.2,1.00231166]
[1768258840278,0.30423128,3100.4,3099.2,1.00231166]
[1768258840480,0.92439364,3100.3,3099.2,1.00231166]
[1768258840779,0.30423128,3100.4,3099.2,1.00231166]
[1768258840981,0.92439658,3100.3,3099.2,1.00231166]
[1768258841179,0.30423128,3100.4,3099.2,1.00231166]
[1768258841381,0.92457514,3100.3,3099.2,1.00231166]
[1768258841683,0.30423128,3100.4,3099.2,1.00231166]
[1768258841882,0.92458099,3100.3,3099.2,1.00231166]
[1768258842182,0.30423128,3100.4,3099.2,1.00231166]
[1768258842381,0.92477348,3100.3,3099.2,1.00231166]
[1768258842584,0.30423128,3100.4,3099.2,1.00231166]
[1768258842784,0.92479742,3100.3,3099.2,1.00231166]
[1768258842986,0.00380159,3100.4,3099.2,1.00231166]
[1768258843284,0.92479812,3100.3,3099.2,1.00231166]
[1768258843485,0.00380159,3100.4,3099.2,1.00231166]
[1768258843680,0.92499102,3100.3,3099.2,1.00231166]
[1768258843877,0.00380159,3100.4,3099.2,1.00231166]
[1768258844075,0.92499163,3100.3,3099.2,1.00231166]
[1768258844275,0.00380159,3100.4,3099.2,1.00231166]
[1768258844477,0.92508116,3100.3,3099.4,1.00231166]
[1768258844787,0.00380159,3100.4,3099.4,1.00231166]
[1768258844987,0.92312071,3100.3,3099.4,1.00231166]
[1768258845189,0.00380159,3100.4,3099.4,1.00231166]
[1768258845388,0.92325383,3100.3,3099.4,1.00231166]
[1768258845690,0.00380159,3100.4,3099.4,1.00231166]
[1768258845890,0.92327486,3100.3,3099.4,1.00231166]
[1768258846090,0.00380159,3100.4,3099.4,1.00231166]
[1768258846290,0.92344141,3100.3,3099.4,1.00231166]
[1768258846483,0.00380159,3100.4,3099.4,1.00231166]
[1768258846683,0.92344141,3100.3,3099.4,1.00231166]
[1768258846881,0.00380159,3100.4,3099.4,1.00231166]
[1768258850900,0.00380159,3100.4,3099.4,1.00028235]
[1768258856297,0.00483737,3100.2,3099.4,1.00028235]
[1768258857005,0.00483737,3100.2,3099.2,3.229]
[1768258857206,0.00483737,3100.2,3099.5,1.00028235]
[1768258857406,0.00380159,3100.4,3099.5,1.00028235]
[1768258860202,0.00380159,3100.4,3099.4,1.26583737]
[1768258860396,0.00380159,3100.4,3099.6,1.00028235]
[1768258862102,0.30040969,3100.9,3099.6,1.00028235]